[Event "Titled Tuesday Blitz May 03 Early 2022"]
[White "Abarca Gonzalez, Nicolas"]
[Black "Martinez Alcantara, Jose Eduardo"]
[WhiteFideId "3409422"]
[BlackFideId "3805662"]
[WhiteElo "2504"]
[BlackElo "2690"]
[Result "1-0"]
[Round "11"]
[TimeControl "180+1"]
[Date "2022.05.03"]
[WhiteClock "0:00:18"]
[BlackClock "0:00:05"]

1. e4 {[%clk 0:03:00]}  c5 {[%clk 0:03:00]} 2. Nf3 {[%clk 0:03:00]}  d6 {[%clk 0:03:01]} 3. Bc4 {[%clk 0:03:00]}  e6 {[%clk 0:03:01]} 4. Qe2 {[%clk 0:02:59]}  Be7 {[%clk 0:03:01]} 5. O-O {[%clk 0:02:58]}  Nc6 {[%clk 0:03:01]} 6. c3 {[%clk 0:02:58]}  Nf6 {[%clk 0:03:01]} 7. d4 {[%clk 0:02:57]}  cxd4 {[%clk 0:03:02]} 8. cxd4 {[%clk 0:02:57]}  d5 {[%clk 0:03:03]} 9. exd5 {[%clk 0:02:57]}  exd5 {[%clk 0:03:04]} 10. Bb5 {[%clk 0:02:56]}  O-O {[%clk 0:03:04]} 11. Bxc6 {[%clk 0:02:56]}  bxc6 {[%clk 0:03:05]} 12. Nc3 {[%clk 0:02:57]}  Bg4 {[%clk 0:02:53]} 13. h3 {[%clk 0:02:56]}  Bh5 {[%clk 0:02:54]} 14. g4 {[%clk 0:02:55]}  Bg6 {[%clk 0:02:51]} 15. Ne5 {[%clk 0:02:55]}  Rc8 {[%clk 0:02:49]} 16. f4 {[%clk 0:02:54]}  Be4 {[%clk 0:02:45]} 17. g5 {[%clk 0:02:52]}  Ne8 {[%clk 0:02:38]} 18. Nxe4 {[%clk 0:02:48]}  dxe4 {[%clk 0:02:39]} 19. Qxe4 {[%clk 0:02:48]}  Nd6 {[%clk 0:02:39]} 20. Qd3 {[%clk 0:02:47]}  Nb5 {[%clk 0:02:40]} 21. Be3 {[%clk 0:02:46]}  Qd5 {[%clk 0:02:39]} 22. a4 {[%clk 0:02:35]}  Nd6 {[%clk 0:02:39]} 23. Rac1 {[%clk 0:02:24]}  f6 {[%clk 0:02:38]} 24. Ng4 {[%clk 0:02:11]}  Nf5 {[%clk 0:02:29]} 25. gxf6 {[%clk 0:02:05]}  Nh4 {[%clk 0:02:15]} 26. Qc4 {[%clk 0:02:00]}  Bxf6 {[%clk 0:02:11]} 27. Qxd5+ {[%clk 0:01:52]}  cxd5 {[%clk 0:02:12]} 28. Rc5 {[%clk 0:01:53]}  Nf5 {[%clk 0:02:10]} 29. Nxf6+ {[%clk 0:01:49]}  gxf6 {[%clk 0:02:10]} 30. Bf2 {[%clk 0:01:49]}  Rcd8 {[%clk 0:02:05]} 31. Re1 {[%clk 0:01:47]}  Kf7 {[%clk 0:01:52]} 32. Ra5 {[%clk 0:01:39]}  Rd7 {[%clk 0:01:51]} 33. b4 {[%clk 0:01:39]}  Rb8 {[%clk 0:01:44]} 34. Rb1 {[%clk 0:01:38]}  Re8 {[%clk 0:01:26]} 35. b5 {[%clk 0:01:32]}  Re4 {[%clk 0:01:23]} 36. Ra6 {[%clk 0:01:19]}  Rxf4 {[%clk 0:01:20]} 37. a5 {[%clk 0:01:19]}  Kg8 {[%clk 0:00:59]} 38. Rb3 {[%clk 0:00:58]}  Rg7+ {[%clk 0:00:54]} 39. Kf1 {[%clk 0:00:58]}  Ng3+ {[%clk 0:00:39]} 40. Ke1 {[%clk 0:00:51]}  Ne4 {[%clk 0:00:39]} 41. Rb2 {[%clk 0:00:42]}  Re7 {[%clk 0:00:36]} 42. Kf1 {[%clk 0:00:40]}  Ng3+ {[%clk 0:00:25]} 43. Kg2 {[%clk 0:00:39]}  Ne4 {[%clk 0:00:26]} 44. b6 {[%clk 0:00:36]}  axb6 {[%clk 0:00:27]} 45. axb6 {[%clk 0:00:34]}  Nxf2 {[%clk 0:00:21]} 46. b7 {[%clk 0:00:31]}  Re8 {[%clk 0:00:10]} 47. Rxf2 {[%clk 0:00:20]}  Rxd4 {[%clk 0:00:05]} 48. Ra8 {[%clk 0:00:19]}  Kf7 {[%clk 0:00:05]} 49. Rxe8 {[%clk 0:00:18]} 1-0


[Site "https://www.chess.com"]

[Event "Titled Tuesday Blitz May 03 Early 2022"]
[White "Al-Tarboush, Ward"]
[Black "Tanenbaum, Zachary"]
[WhiteFideId "7601450"]
[BlackFideId "2060850"]
[WhiteElo "2276"]
[BlackElo "2168"]
[Result "0-1"]
[Round "11"]
[TimeControl "180+1"]
[Date "2022.05.03"]
[WhiteClock "0:02:44"]
[BlackClock "0:02:04"]

1. e4 {[%clk 0:03:00]}  e5 {[%clk 0:02:59]} 2. Nf3 {[%clk 0:03:00]}  Nc6 {[%clk 0:03:00]} 3. Bb5 {[%clk 0:02:58]}  a6 {[%clk 0:03:01]} 4. Ba4 {[%clk 0:02:57]}  d6 {[%clk 0:03:01]} 5. d4 {[%clk 0:02:51]}  b5 {[%clk 0:03:01]} 6. Bb3 {[%clk 0:02:49]}  Nxd4 {[%clk 0:03:02]} 7. Nxd4 {[%clk 0:02:47]}  exd4 {[%clk 0:03:03]} 8. c3 {[%clk 0:02:47]}  Bb7 {[%clk 0:03:02]} 9. cxd4 {[%clk 0:02:46]}  Nf6 {[%clk 0:03:02]} 10. O-O {[%clk 0:02:46]}  Be7 {[%clk 0:03:02]} 11. Re1 {[%clk 0:02:47]}  O-O {[%clk 0:02:57]} 12. Nc3 {[%clk 0:02:43]}  b4 {[%clk 0:02:56]} 13. Nd5 {[%clk 0:02:43]}  Nxd5 {[%clk 0:02:50]} 14. exd5 {[%clk 0:02:44]}  Bf6 {[%clk 0:02:49]} 15. Be3 {[%clk 0:02:44]}  Qd7 {[%clk 0:02:47]} 16. Qf3 {[%clk 0:02:44]}  Rfe8 {[%clk 0:02:45]} 17. Rac1 {[%clk 0:02:44]}  Re7 {[%clk 0:02:41]} 18. h3 {[%clk 0:02:44]}  Rae8 {[%clk 0:02:40]} 19. Red1 {[%clk 0:02:44]}  h6 {[%clk 0:02:04]} 0-1


[Site "https://www.chess.com"]

[Event "Titled Tuesday Blitz May 03 Early 2022"]
[White "Aradhya, Garg"]
[Black "Souleidis, Georgios"]
[WhiteFideId "25006746"]
[BlackFideId "4206827"]
[WhiteElo "2169"]
[BlackElo "2401"]
[Result "1-0"]
[Round "11"]
[TimeControl "180+1"]
[Date "2022.05.03"]
[WhiteClock "0:00:45"]
[BlackClock "0:00:08"]

1. d4 {[%clk 0:03:00]}  Nf6 {[%clk 0:02:53]} 2. c4 {[%clk 0:03:00]}  g6 {[%clk 0:02:54]} 3. g3 {[%clk 0:03:00]}  Bg7 {[%clk 0:02:54]} 4. Bg2 {[%clk 0:03:01]}  O-O {[%clk 0:02:55]} 5. Nc3 {[%clk 0:03:01]}  d6 {[%clk 0:02:55]} 6. Nf3 {[%clk 0:03:01]}  Nc6 {[%clk 0:02:55]} 7. O-O {[%clk 0:03:01]}  e5 {[%clk 0:02:55]} 8. dxe5 {[%clk 0:02:50]}  Nxe5 {[%clk 0:02:54]} 9. b3 {[%clk 0:02:48]}  Nxf3+ {[%clk 0:02:49]} 10. Bxf3 {[%clk 0:02:48]}  Ne4 {[%clk 0:02:47]} 11. Nxe4 {[%clk 0:02:47]}  Bxa1 {[%clk 0:02:48]} 12. Bg5 {[%clk 0:02:48]}  f6 {[%clk 0:02:45]} 13. Bh6 {[%clk 0:02:48]}  Be5 {[%clk 0:02:45]} 14. Bxf8 {[%clk 0:02:47]}  Qxf8 {[%clk 0:02:46]} 15. Qd2 {[%clk 0:02:38]}  f5 {[%clk 0:02:45]} 16. Ng5 {[%clk 0:02:38]}  h6 {[%clk 0:02:26]} 17. Bd5+ {[%clk 0:02:34]}  Kg7 {[%clk 0:02:21]} 18. Bxb7 {[%clk 0:02:25]}  Rb8 {[%clk 0:02:02]} 19. Bxc8 {[%clk 0:02:25]}  Qxc8 {[%clk 0:02:02]} 20. Nf3 {[%clk 0:02:24]}  Bf6 {[%clk 0:02:02]} 21. c5 {[%clk 0:02:21]}  dxc5 {[%clk 0:01:45]} 22. Rc1 {[%clk 0:02:20]}  Be7 {[%clk 0:01:36]} 23. Qc3+ {[%clk 0:02:03]}  Kh7 {[%clk 0:01:32]} 24. Rd1 {[%clk 0:02:04]}  Bd6 {[%clk 0:01:26]} 25. Ne5 {[%clk 0:02:02]}  Qe6 {[%clk 0:01:21]} 26. Nc4 {[%clk 0:02:02]}  Re8 {[%clk 0:01:11]} 27. e3 {[%clk 0:02:01]}  h5 {[%clk 0:01:10]} 28. Qd3 {[%clk 0:01:58]}  Rd8 {[%clk 0:01:02]} 29. Qd5 {[%clk 0:01:57]}  Qxd5 {[%clk 0:01:00]} 30. Rxd5 {[%clk 0:01:57]}  Kg7 {[%clk 0:01:00]} 31. Kg2 {[%clk 0:01:51]}  Kf6 {[%clk 0:01:01]} 32. h3 {[%clk 0:01:51]}  Ke6 {[%clk 0:01:01]} 33. Rd2 {[%clk 0:01:50]}  Rb8 {[%clk 0:01:01]} 34. f4 {[%clk 0:01:47]}  a6 {[%clk 0:00:59]} 35. Kf3 {[%clk 0:01:47]}  Rh8 {[%clk 0:00:58]} 36. h4 {[%clk 0:01:38]}  Ra8 {[%clk 0:00:55]} 37. e4 {[%clk 0:01:38]}  fxe4+ {[%clk 0:00:55]} 38. Kxe4 {[%clk 0:01:39]}  a5 {[%clk 0:00:42]} 39. a4 {[%clk 0:01:38]}  Ra7 {[%clk 0:00:38]} 40. Rd5 {[%clk 0:01:28]}  Ra8 {[%clk 0:00:38]} 41. Rg5 {[%clk 0:01:20]}  Kf6 {[%clk 0:00:37]} 42. Kd5 {[%clk 0:01:19]}  Be7 {[%clk 0:00:34]} 43. Kc6 {[%clk 0:01:19]}  Rd8 {[%clk 0:00:27]} 44. Re5 {[%clk 0:01:17]}  Rd3 {[%clk 0:00:24]} 45. Re3 {[%clk 0:01:17]}  Rd1 {[%clk 0:00:18]} 46. Kxc7 {[%clk 0:01:10]}  Bf8 {[%clk 0:00:18]} 47. Nxa5 {[%clk 0:01:07]}  Kf5 {[%clk 0:00:18]} 48. Re5+ {[%clk 0:01:02]}  Kf6 {[%clk 0:00:17]} 49. Nc4 {[%clk 0:01:01]}  Rb1 {[%clk 0:00:15]} 50. Re3 {[%clk 0:01:01]}  Kf5 {[%clk 0:00:15]} 51. a5 {[%clk 0:01:01]}  Ra1 {[%clk 0:00:13]} 52. Kb7 {[%clk 0:01:00]}  Bg7 {[%clk 0:00:14]} 53. a6 {[%clk 0:01:00]}  Bd4 {[%clk 0:00:14]} 54. Re5+ {[%clk 0:00:49]}  Bxe5 {[%clk 0:00:14]} 55. fxe5 {[%clk 0:00:49]}  Kg4 {[%clk 0:00:07]} 56. e6 {[%clk 0:00:46]}  Kxg3 {[%clk 0:00:07]} 57. a7 {[%clk 0:00:46]}  Kxh4 {[%clk 0:00:07]} 58. a8=Q {[%clk 0:00:44]}  Rxa8 {[%clk 0:00:07]} 59. Kxa8 {[%clk 0:00:45]}  g5 {[%clk 0:00:08]} 60. e7 {[%clk 0:00:45]} 1-0


[Site "https://www.chess.com"]

[Event "Titled Tuesday Blitz May 03 Early 2022"]
[White "Bacrot, Etienne"]
[Black "Zemlyanskii, Ivan"]
[WhiteFideId "605506"]
[BlackFideId "24249971"]
[WhiteElo "2673"]
[BlackElo "1759"]
[Result "0-1"]
[Round "11"]
[TimeControl "180+1"]
[Date "2022.05.03"]
[WhiteClock "0:01:00"]
[BlackClock "0:01:00"]

1. e4 {[%clk 0:03:00]}  c5 {[%clk 0:02:59]} 2. Nf3 {[%clk 0:03:00]}  e6 {[%clk 0:02:59]} 3. b3 {[%clk 0:02:59]}  Nc6 {[%clk 0:02:44]} 4. Bb2 {[%clk 0:02:58]}  a6 {[%clk 0:02:43]} 5. c4 {[%clk 0:02:57]}  Nf6 {[%clk 0:02:43]} 6. Qe2 {[%clk 0:02:54]}  d6 {[%clk 0:02:35]} 7. g3 {[%clk 0:02:52]}  Be7 {[%clk 0:02:32]} 8. Bg2 {[%clk 0:02:52]}  e5 {[%clk 0:02:29]} 9. Nc3 {[%clk 0:02:51]}  Nd4 {[%clk 0:02:27]} 10. Nxd4 {[%clk 0:02:51]}  cxd4 {[%clk 0:02:27]} 11. Nd5 {[%clk 0:02:51]}  Nxd5 {[%clk 0:02:24]} 12. exd5 {[%clk 0:02:51]}  O-O {[%clk 0:02:21]} 13. d3 {[%clk 0:02:48]}  b5 {[%clk 0:02:17]} 14. O-O-O {[%clk 0:02:24]}  bxc4 {[%clk 0:02:13]} 15. dxc4 {[%clk 0:02:22]}  a5 {[%clk 0:02:13]} 16. a4 {[%clk 0:02:04]}  Rb8 {[%clk 0:02:10]} 17. Rd3 {[%clk 0:02:03]}  Bf5 {[%clk 0:02:07]} 18. Be4 {[%clk 0:02:03]}  Bxe4 {[%clk 0:02:03]} 19. Qxe4 {[%clk 0:02:03]}  f5 {[%clk 0:02:04]} 20. Qe2 {[%clk 0:01:57]}  e4 {[%clk 0:01:56]} 21. Rxd4 {[%clk 0:01:54]}  Rxb3 {[%clk 0:01:54]} 22. Rhd1 {[%clk 0:01:44]}  Qd7 {[%clk 0:01:43]} 23. c5 {[%clk 0:01:30]}  dxc5 {[%clk 0:01:32]} 24. Rc4 {[%clk 0:01:25]}  Rfb8 {[%clk 0:01:24]} 25. d6 {[%clk 0:01:23]}  Rxb2 {[%clk 0:01:07]} 26. Qxb2 {[%clk 0:01:14]}  Rxb2 {[%clk 0:01:06]} 27. Kxb2 {[%clk 0:01:14]}  Bxd6 {[%clk 0:01:04]} 28. Kc2 {[%clk 0:01:12]}  Qe6 {[%clk 0:01:03]} 29. Kb3 {[%clk 0:01:11]}  Be5 {[%clk 0:01:01]} 30. Rd8+ {[%clk 0:01:10]}  Kf7 {[%clk 0:01:01]} 31. Rb8 {[%clk 0:01:00]}  Bxb8 {[%clk 0:01:00]} 0-1


[Site "https://www.chess.com"]

[Event "Titled Tuesday Blitz May 03 Early 2022"]
[White "Balabayeva, Xeniya"]
[Black "Gatterer, Florian"]
[WhiteFideId "13719688"]
[BlackFideId "811688"]
[WhiteElo "1941"]
[BlackElo "2218"]
[Result "1-0"]
[Round "11"]
[TimeControl "180+1"]
[Date "2022.05.03"]
[WhiteClock "0:01:31"]
[BlackClock "0:01:04"]

1. d4 {[%clk 0:03:00]}  Nf6 {[%clk 0:02:59]} 2. Bf4 {[%clk 0:02:58]}  d5 {[%clk 0:02:56]} 3. e3 {[%clk 0:02:58]}  c5 {[%clk 0:02:56]} 4. dxc5 {[%clk 0:02:59]}  Nc6 {[%clk 0:02:52]} 5. Bb5 {[%clk 0:02:57]}  Qa5+ {[%clk 0:02:49]} 6. Nc3 {[%clk 0:02:56]}  e6 {[%clk 0:02:47]} 7. a3 {[%clk 0:02:56]}  Ne4 {[%clk 0:02:43]} 8. Ne2 {[%clk 0:02:51]}  Be7 {[%clk 0:02:35]} 9. b4 {[%clk 0:02:47]}  Nxc3 {[%clk 0:02:32]} 10. Nxc3 {[%clk 0:02:46]}  Qd8 {[%clk 0:02:31]} 11. O-O {[%clk 0:02:34]}  O-O {[%clk 0:02:31]} 12. Rb1 {[%clk 0:02:31]}  Bf6 {[%clk 0:02:29]} 13. Qd2 {[%clk 0:02:29]}  Ne5 {[%clk 0:02:27]} 14. Rfd1 {[%clk 0:02:24]}  a6 {[%clk 0:02:25]} 15. Be2 {[%clk 0:02:22]}  Ng6 {[%clk 0:02:22]} 16. Bg3 {[%clk 0:02:20]}  Re8 {[%clk 0:02:02]} 17. Na4 {[%clk 0:02:09]}  b5 {[%clk 0:01:42]} 18. cxb6 {[%clk 0:02:03]}  Bd7 {[%clk 0:01:42]} 19. Nc5 {[%clk 0:01:58]}  Bc6 {[%clk 0:01:42]} 20. b7 {[%clk 0:01:56]}  Rb8 {[%clk 0:01:40]} 21. Bxb8 {[%clk 0:01:55]}  Qxb8 {[%clk 0:01:40]} 22. Bxa6 {[%clk 0:01:53]}  Be5 {[%clk 0:01:35]} 23. b5 {[%clk 0:01:47]}  Bxh2+ {[%clk 0:01:24]} 24. Kf1 {[%clk 0:01:46]}  Qd6 {[%clk 0:01:14]} 25. bxc6 {[%clk 0:01:41]}  Qxc5 {[%clk 0:01:15]} 26. g3 {[%clk 0:01:39]}  Ne5 {[%clk 0:01:06]} 27. b8=Q {[%clk 0:01:36]}  h6 {[%clk 0:01:05]} 28. Qxe8+ {[%clk 0:01:35]}  Kh7 {[%clk 0:01:05]} 29. Bd3+ {[%clk 0:01:34]}  g6 {[%clk 0:01:04]} 30. Qb4 {[%clk 0:01:31]} 1-0


[Site "https://www.chess.com"]

[Event "Titled Tuesday Blitz May 03 Early 2022"]
[White "Bifulco, Michel"]
[Black "Terzi, Alexei"]
[WhiteFideId "828580"]
[BlackFideId "13505076"]
[WhiteElo "2165"]
[BlackElo "2031"]
[Result "0-1"]
[Round "11"]
[TimeControl "180+1"]
[Date "2022.05.03"]
[WhiteClock "0:00:08"]
[BlackClock "0:00:24"]

1. d4 {[%clk 0:03:00]}  e6 {[%clk 0:02:56]} 2. Nc3 {[%clk 0:03:00]}  Nf6 {[%clk 0:02:54]} 3. Bf4 {[%clk 0:03:00]}  d5 {[%clk 0:02:50]} 4. Nb5 {[%clk 0:03:00]}  Na6 {[%clk 0:02:49]} 5. e3 {[%clk 0:03:00]}  Be7 {[%clk 0:02:48]} 6. Nf3 {[%clk 0:02:57]}  O-O {[%clk 0:02:48]} 7. c4 {[%clk 0:02:50]}  c5 {[%clk 0:02:47]} 8. Bd3 {[%clk 0:02:42]}  cxd4 {[%clk 0:02:39]} 9. Nfxd4 {[%clk 0:02:39]}  dxc4 {[%clk 0:02:26]} 10. Bxc4 {[%clk 0:02:39]}  Qa5+ {[%clk 0:02:13]} 11. Nc3 {[%clk 0:02:37]}  Rd8 {[%clk 0:01:55]} 12. Qb3 {[%clk 0:01:44]}  e5 {[%clk 0:01:42]} 13. Bxf7+ {[%clk 0:01:41]}  Kh8 {[%clk 0:01:42]} 14. Ne6 {[%clk 0:01:36]}  Bxe6 {[%clk 0:01:18]} 15. Qxe6 {[%clk 0:01:36]}  Nc5 {[%clk 0:01:08]} 16. Qxe7 {[%clk 0:01:27]}  Rd7 {[%clk 0:01:08]} 17. Qxd7 {[%clk 0:01:01]}  Nfxd7 {[%clk 0:01:09]} 18. Bg3 {[%clk 0:00:55]}  Nd3+ {[%clk 0:01:09]} 19. Ke2 {[%clk 0:00:55]}  Nxb2 {[%clk 0:01:09]} 20. Rac1 {[%clk 0:00:54]}  Rf8 {[%clk 0:01:02]} 21. Bb3 {[%clk 0:00:34]}  Qa6+ {[%clk 0:01:01]} 22. Kd2 {[%clk 0:00:30]}  Nc5 {[%clk 0:00:52]} 23. Kc2 {[%clk 0:00:27]}  Nbd3 {[%clk 0:00:46]} 24. Rcd1 {[%clk 0:00:25]}  Qg6 {[%clk 0:00:30]} 25. e4 {[%clk 0:00:20]}  Nxf2 {[%clk 0:00:25]} 26. Rhf1 {[%clk 0:00:18]}  Ncxe4 {[%clk 0:00:25]} 27. Nxe4 {[%clk 0:00:08]}  Qxe4+ {[%clk 0:00:24]} 0-1


[Site "https://www.chess.com"]

[Event "Titled Tuesday Blitz May 03 Early 2022"]
[White "Buscar, Michael"]
[Black "Ratnakaran, K."]
[WhiteFideId "2603616"]
[BlackFideId "5005507"]
[WhiteElo "2010"]
[BlackElo "2407"]
[Result "0-1"]
[Round "11"]
[TimeControl "180+1"]
[Date "2022.05.03"]
[WhiteClock "0:00:07"]
[BlackClock "0:01:20"]

1. d4 {[%clk 0:03:00]}  c5 {[%clk 0:02:59]} 2. d5 {[%clk 0:03:00]}  Nf6 {[%clk 0:02:59]} 3. g3 {[%clk 0:02:58]}  e6 {[%clk 0:03:00]} 4. c4 {[%clk 0:02:57]}  exd5 {[%clk 0:03:00]} 5. cxd5 {[%clk 0:02:57]}  d6 {[%clk 0:03:01]} 6. Bg2 {[%clk 0:02:57]}  g6 {[%clk 0:03:02]} 7. Nc3 {[%clk 0:02:54]}  Bg7 {[%clk 0:03:03]} 8. Nf3 {[%clk 0:02:54]}  O-O {[%clk 0:03:03]} 9. O-O {[%clk 0:02:55]}  a6 {[%clk 0:03:03]} 10. a4 {[%clk 0:02:55]}  Re8 {[%clk 0:03:04]} 11. Nd2 {[%clk 0:02:55]}  Nbd7 {[%clk 0:03:04]} 12. Nc4 {[%clk 0:02:51]}  Nb6 {[%clk 0:03:03]} 13. Nxb6 {[%clk 0:02:47]}  Qxb6 {[%clk 0:03:03]} 14. a5 {[%clk 0:02:47]}  Qc7 {[%clk 0:03:03]} 15. Bf4 {[%clk 0:02:43]}  Rb8 {[%clk 0:03:02]} 16. Na4 {[%clk 0:02:33]}  Nh5 {[%clk 0:03:00]} 17. Qd2 {[%clk 0:02:27]}  Bg4 {[%clk 0:02:57]} 18. Rfe1 {[%clk 0:02:23]}  Nxf4 {[%clk 0:02:56]} 19. gxf4 {[%clk 0:02:20]}  Qe7 {[%clk 0:02:36]} 20. e3 {[%clk 0:02:14]}  Qh4 {[%clk 0:02:33]} 21. Nb6 {[%clk 0:02:05]}  Qh5 {[%clk 0:02:31]} 22. Nc4 {[%clk 0:02:01]}  Rbd8 {[%clk 0:02:29]} 23. Ra3 {[%clk 0:02:00]}  Kh8 {[%clk 0:02:28]} 24. Rb3 {[%clk 0:01:54]}  Rd7 {[%clk 0:02:23]} 25. Nb6 {[%clk 0:01:49]}  Rc7 {[%clk 0:02:20]} 26. Nc4 {[%clk 0:01:50]}  Bf8 {[%clk 0:02:20]} 27. e4 {[%clk 0:01:43]}  Kg8 {[%clk 0:02:09]} 28. e5 {[%clk 0:01:32]}  dxe5 {[%clk 0:02:08]} 29. fxe5 {[%clk 0:01:31]}  Bh6 {[%clk 0:02:06]} 30. f4 {[%clk 0:01:20]}  g5 {[%clk 0:02:04]} 31. Nd6 {[%clk 0:01:11]}  Rd8 {[%clk 0:01:59]} 32. Ne4 {[%clk 0:01:11]}  Kh8 {[%clk 0:01:50]} 33. Nf6 {[%clk 0:01:00]}  Qh4 {[%clk 0:01:47]} 34. Rg3 {[%clk 0:01:00]}  Bf5 {[%clk 0:01:43]} 35. fxg5 {[%clk 0:00:58]}  Bg7 {[%clk 0:01:42]} 36. d6 {[%clk 0:00:56]}  Rc6 {[%clk 0:01:39]} 37. Bxc6 {[%clk 0:00:54]}  bxc6 {[%clk 0:01:39]} 38. Rf1 {[%clk 0:00:49]}  Bxf6 {[%clk 0:01:28]} 39. gxf6 {[%clk 0:00:41]}  Bg6 {[%clk 0:01:27]} 40. Qf4 {[%clk 0:00:36]}  Qh5 {[%clk 0:01:26]} 41. Qg5 {[%clk 0:00:20]}  Qe2 {[%clk 0:01:24]} 42. Rg2 {[%clk 0:00:18]}  Qe4 {[%clk 0:01:22]} 43. Qh6 {[%clk 0:00:17]}  Rg8 {[%clk 0:01:22]} 44. d7 {[%clk 0:00:13]}  Qd4+ {[%clk 0:01:22]} 45. Kh1 {[%clk 0:00:11]}  Qxd7 {[%clk 0:01:22]} 46. Qf4 {[%clk 0:00:08]}  Qd5 {[%clk 0:01:22]} 47. Qe3 {[%clk 0:00:07]}  Be4 {[%clk 0:01:20]} 0-1


[Site "https://www.chess.com"]

[Event "Titled Tuesday Blitz May 03 Early 2022"]
[White "Cherniaiev, Tykhon"]
[Black "Andreev, Eduard"]
[WhiteFideId "14182360"]
[BlackFideId "14103400"]
[WhiteElo "2289"]
[BlackElo "2382"]
[Result "1-0"]
[Round "11"]
[TimeControl "180+1"]
[Date "2022.05.03"]
[WhiteClock "0:00:04"]
[BlackClock "0:00:05"]

1. Nf3 {[%clk 0:03:00]}  c5 {[%clk 0:02:59]} 2. c4 {[%clk 0:03:00]}  Nc6 {[%clk 0:02:59]} 3. g3 {[%clk 0:03:00]}  g6 {[%clk 0:02:58]} 4. Bg2 {[%clk 0:03:00]}  Bg7 {[%clk 0:02:59]} 5. O-O {[%clk 0:03:01]}  e5 {[%clk 0:02:58]} 6. Nc3 {[%clk 0:03:01]}  d6 {[%clk 0:02:58]} 7. e3 {[%clk 0:03:01]}  Nge7 {[%clk 0:02:57]} 8. d4 {[%clk 0:03:01]}  exd4 {[%clk 0:02:54]} 9. exd4 {[%clk 0:03:01]}  O-O {[%clk 0:02:33]} 10. dxc5 {[%clk 0:03:00]}  dxc5 {[%clk 0:02:32]} 11. Bg5 {[%clk 0:02:14]}  h6 {[%clk 0:02:25]} 12. Be3 {[%clk 0:01:44]}  Qa5 {[%clk 0:02:13]} 13. Nd5 {[%clk 0:01:37]}  Be6 {[%clk 0:01:53]} 14. Nxe7+ {[%clk 0:01:34]}  Nxe7 {[%clk 0:01:52]} 15. Qd6 {[%clk 0:01:23]}  Nf5 {[%clk 0:01:42]} 16. Qxc5 {[%clk 0:01:23]}  Qxc5 {[%clk 0:01:41]} 17. Bxc5 {[%clk 0:01:24]}  Rfc8 {[%clk 0:01:41]} 18. Ba3 {[%clk 0:01:23]}  Rxc4 {[%clk 0:01:35]} 19. Nd2 {[%clk 0:01:07]}  Rc2 {[%clk 0:01:33]} 20. Ne4 {[%clk 0:01:00]}  Rd8 {[%clk 0:01:20]} 21. Rad1 {[%clk 0:00:59]}  Rxd1 {[%clk 0:01:15]} 22. Rxd1 {[%clk 0:01:00]}  Bxb2 {[%clk 0:01:12]} 23. Rd8+ {[%clk 0:00:30]}  Kh7 {[%clk 0:01:02]} 24. Bxb2 {[%clk 0:00:27]}  Rxb2 {[%clk 0:01:01]} 25. h4 {[%clk 0:00:22]}  Kg7 {[%clk 0:00:58]} 26. Nc5 {[%clk 0:00:21]}  Bxa2 {[%clk 0:00:53]} 27. Nxb7 {[%clk 0:00:21]}  Rb1+ {[%clk 0:00:38]} 28. Kh2 {[%clk 0:00:21]}  Rb2 {[%clk 0:00:38]} 29. Kg1 {[%clk 0:00:21]}  Be6 {[%clk 0:00:34]} 30. Ra8 {[%clk 0:00:17]}  Rb1+ {[%clk 0:00:31]} 31. Kh2 {[%clk 0:00:17]}  Ra1 {[%clk 0:00:31]} 32. Nc5 {[%clk 0:00:10]}  Bc4 {[%clk 0:00:29]} 33. Rc8 {[%clk 0:00:08]}  Ra2 {[%clk 0:00:27]} 34. Kg1 {[%clk 0:00:08]}  Nd4 {[%clk 0:00:26]} 35. Rc7 {[%clk 0:00:05]}  a5 {[%clk 0:00:24]} 36. Ne4 {[%clk 0:00:04]}  Be6 {[%clk 0:00:19]} 37. Nc5 {[%clk 0:00:04]}  Bg4 {[%clk 0:00:17]} 38. Bd5 {[%clk 0:00:03]}  Nf3+ {[%clk 0:00:11]} 39. Kg2 {[%clk 0:00:03]}  Ne5 {[%clk 0:00:10]} 40. Bxa2 {[%clk 0:00:03]}  Bf3+ {[%clk 0:00:09]} 41. Kg1 {[%clk 0:00:03]}  Be4 {[%clk 0:00:07]} 42. Nxe4 {[%clk 0:00:03]}  Kf8 {[%clk 0:00:07]} 43. Nd6 {[%clk 0:00:03]}  Kg7 {[%clk 0:00:06]} 44. Nxf7 {[%clk 0:00:03]}  Kf6 {[%clk 0:00:05]} 45. Nxe5 {[%clk 0:00:03]}  Kxe5 {[%clk 0:00:05]} 46. Rc5+ {[%clk 0:00:04]} 1-0


[Site "https://www.chess.com"]

[Event "Titled Tuesday Blitz May 03 Early 2022"]
[White "Clawitter, Craig"]
[Black "Avazkhonov, Alikhon"]
[WhiteFideId "2023105"]
[BlackFideId "14208504"]
[WhiteElo "2281"]
[BlackElo "1739"]
[Result "0-1"]
[Round "11"]
[TimeControl "180+1"]
[Date "2022.05.03"]
[WhiteClock "0:00:01"]
[BlackClock "0:00:04"]

1. e4 {[%clk 0:03:00]}  c6 {[%clk 0:02:58]} 2. Nf3 {[%clk 0:03:00]}  d5 {[%clk 0:02:58]} 3. e5 {[%clk 0:03:01]}  Bf5 {[%clk 0:02:53]} 4. d4 {[%clk 0:03:01]}  e6 {[%clk 0:02:54]} 5. Be2 {[%clk 0:03:01]}  Nd7 {[%clk 0:02:51]} 6. O-O {[%clk 0:03:00]}  h6 {[%clk 0:02:51]} 7. Nbd2 {[%clk 0:02:47]}  Ne7 {[%clk 0:02:50]} 8. Re1 {[%clk 0:02:46]}  Ng6 {[%clk 0:02:48]} 9. Nf1 {[%clk 0:02:44]}  Be7 {[%clk 0:02:46]} 10. Ne3 {[%clk 0:02:36]}  Be4 {[%clk 0:02:17]} 11. Nd2 {[%clk 0:02:35]}  Nf4 {[%clk 0:02:04]} 12. Nxe4 {[%clk 0:02:28]}  dxe4 {[%clk 0:02:05]} 13. Bf1 {[%clk 0:02:19]}  c5 {[%clk 0:01:54]} 14. dxc5 {[%clk 0:01:58]}  O-O {[%clk 0:01:01]} 15. Nc4 {[%clk 0:01:49]}  Ng6 {[%clk 0:00:43]} 16. Rxe4 {[%clk 0:01:38]}  Nxc5 {[%clk 0:00:43]} 17. Rd4 {[%clk 0:01:38]}  Qc7 {[%clk 0:00:43]} 18. f4 {[%clk 0:00:57]}  Rad8 {[%clk 0:00:40]} 19. Be3 {[%clk 0:00:44]}  f5 {[%clk 0:00:27]} 20. Nd6 {[%clk 0:00:33]}  Bxd6 {[%clk 0:00:08]} 21. exd6 {[%clk 0:00:34]}  Qc6 {[%clk 0:00:07]} 22. b4 {[%clk 0:00:24]}  Ne4 {[%clk 0:00:08]} 23. b5 {[%clk 0:00:24]}  Qc3 {[%clk 0:00:06]} 24. Rd3 {[%clk 0:00:17]}  Qa5 {[%clk 0:00:05]} 25. c4 {[%clk 0:00:10]}  b6 {[%clk 0:00:03]} 26. Qc2 {[%clk 0:00:08]}  Rd7 {[%clk 0:00:03]} 27. Rad1 {[%clk 0:00:07]}  Rfd8 {[%clk 0:00:04]} 28. a4 {[%clk 0:00:03]}  Rxd6 {[%clk 0:00:04]} 29. Rd5 {[%clk 0:00:03]}  exd5 {[%clk 0:00:04]} 30. cxd5 {[%clk 0:00:03]}  Kh7 {[%clk 0:00:04]} 31. Bc4 {[%clk 0:00:04]}  Nc5 {[%clk 0:00:03]} 32. g4 {[%clk 0:00:04]}  Qxa4 {[%clk 0:00:03]} 33. Qxf5 {[%clk 0:00:02]}  Qxd1+ {[%clk 0:00:03]} 34. Kg2 {[%clk 0:00:02]}  Qa4 {[%clk 0:00:02]} 35. h4 {[%clk 0:00:02]}  Rf6 {[%clk 0:00:02]} 36. Qb1 {[%clk 0:00:01]}  Qxc4 {[%clk 0:00:03]} 37. Bxc5 {[%clk 0:00:01]}  Qe4+ {[%clk 0:00:04]} 0-1


[Site "https://www.chess.com"]